bitfinex/quotes_BTCUSD_20240620
["timestamp","ask_amount","ask_price","bid_price","bid_amount"]
[1718918846159,0.001,65272.0,65271.0,0.23147375]
[1718918846358,0.01569866,65272.0,65271.0,0.23147375]
[1718918848099,0.01569866,65272.0,65271.0,0.30477375]
[1718918849297,0.01569866,65272.0,65271.0,0.35904297]
[1718918850620,0.01569866,65272.0,65271.0,0.35998897]
[1718918850988,0.01655866,65272.0,65271.0,0.35998897]
[1718918851646,0.01655866,65272.0,65271.0,0.30425548]
[1718918852783,0.01668627,65272.0,65271.0,0.30425548]
[1718918855863,0.01676837,65272.0,65271.0,0.30425548]
[1718918858958,0.00186,65272.0,65271.0,0.30425548]
[1718918859192,0.01643591,65272.0,65271.0,0.30425548]
[1718918862098,0.00186,65272.0,65271.0,0.30425548]
[1718918862383,0.0166747,65272.0,65271.0,0.30425548]
[1718918865568,0.00186,65272.0,65271.0,0.30425548]
[1718918865766,0.01700867,65272.0,65271.0,0.30425548]
[1718918865968,0.0016,65280.0,65271.0,0.30425548]
[1718918866169,0.0746,65274.0,65271.0,0.30425548]
[1718918866804,0.0746,65274.0,65273.0,0.14510948]
[1718918868242,0.0756,65274.0,65273.0,0.14610948]
[1718918871248,0.001,65274.0,65273.0,0.30340948]
[1718918876025,0.01317781,65274.0,65273.0,0.30340948]
[1718918876748,0.01317781,65274.0,65273.0,0.28394922]
[1718918877223,0.01317781,65274.0,65273.0,0.30340948]
[1718918877426,0.01317781,65274.0,65273.0,0.28394922]
[1718918877831,0.01317781,65274.0,65273.0,0.30340948]
[1718918878394,0.01317781,65274.0,65273.0,0.28394922]
[1718918878595,0.01317781,65274.0,65273.0,0.35910114]
[1718918881539,0.001,65274.0,65273.0,0.35910114]
[1718918881742,0.01289586,65274.0,65273.0,0.35910114]
[1718918882489,0.01289586,65274.0,65273.0,0.61166226]
[1718918883276,0.01289586,65274.0,65273.0,0.5559706]
[1718918884058,0.01189586,65274.0,65273.0,0.5549706]
[1718918884284,0.01189586,65274.0,65273.0,0.5559706]
[1718918884464,0.01189586,65274.0,65273.0,0.5599706]
[1718918884663,0.00955327,65274.0,65273.0,0.5596706]
[1718918884863,0.00955327,65274.0,65273.0,0.5556706]
[1718918885692,0.00955327,65274.0,65273.0,0.5546706]
[1718918886289,0.00955327,65274.0,65273.0,0.6636706]
[1718918887967,0.00955304,65274.0,65273.0,0.6646706]
[1718918889726,0.00955304,65274.0,65273.0,0.73223226]
[1718918891034,0.07017001,65280.0,65273.0,0.57423226]
[1718918891252,0.07017001,65280.0,65279.0,0.14510948]
[1718918891486,0.0746,65283.0,65280.0,0.0906]
[1718918891708,0.00955312,65282.0,65280.0,0.0906]
[1718918891913,0.00955312,65281.0,65280.0,0.0906]
[1718918892349,0.00955312,65281.0,65280.0,0.30860948]
[1718918893417,0.00955312,65281.0,65280.0,0.30960948]
[1718918894276,0.00955303,65281.0,65280.0,0.30960948]
[1718918897514,0.0746,65284.0,65283.0,0.14510948]
[1718918897736,0.0841528,65284.0,65283.0,0.14510948]
[1718918898828,0.0841528,65284.0,65283.0,0.12564922]
[1718918899037,0.0841528,65284.0,65283.0,0.14510948]
[1718918899471,0.0841528,65284.0,65283.0,0.23560948]
[1718918899685,0.0861528,65284.0,65281.0,0.12564922]
[1718918899919,0.0095528,65283.0,65281.0,0.12564922]
[1718918900144,0.0766,65284.0,65283.0,0.12564922]
[1718918900350,0.08615305,65284.0,65281.0,0.12564922]
[1718918900477,0.00955305,65283.0,65281.0,0.12564922]
[1718918900679,0.00955305,65282.0,65281.0,0.14510948]
[1718918900883,0.00955305,65282.0,65281.0,0.30630948]
[1718918902928,0.00955305,65282.0,65281.0,0.30730948]
[1718918903552,0.0746,65283.0,65281.0,0.30630948]
[1718918903749,0.0746,65283.0,65282.0,0.14510948]
[1718918903963,0.01020309,65283.0,65282.0,0.30630948]
[1718918905916,0.01020309,65283.0,65282.0,0.36219654]
[1718918906324,0.01020309,65283.0,65282.0,0.30630948]
[1718918907371,0.01020309,65283.0,65282.0,0.30730948]
[1718918907584,0.01020309,65283.0,65282.0,0.31130948]
[1718918907780,0.01020309,65283.0,65282.0,0.31030948]
[1718918907984,0.01020309,65283.0,65282.0,0.30630948]
[1718918908190,0.01020309,65283.0,65282.0,0.31330948]
[1718918909563,0.01020309,65283.0,65282.0,0.37000998]
[1718918909835,0.07332414,65287.0,65282.0,0.37000998]
[1718918910038,0.01106049,65286.0,65282.0,0.37000998]
[1718918910288,0.01106049,65285.0,65282.0,0.31330948]
[1718918910614,0.01106049,65284.0,65283.0,0.14510948]
[1718918911958,0.01106049,65284.0,65283.0,0.15110948]
[1718918913176,0.01106049,65284.0,65283.0,0.23690948]
[1718918916291,0.01081498,65284.0,65283.0,0.23690948]
[1718918917898,0.01081498,65284.0,65283.0,0.15110948]
[1718918918110,0.00086,65285.0,65284.0,0.24510948]
[1718918918308,0.00086,65285.0,65284.0,0.6657706]
[1718918919342,0.00086,65285.0,65284.0,0.6667706]
[1718918919752,0.00086,65285.0,65284.0,0.6657706]
[1718918919905,0.00086,65285.0,65284.0,0.73244226]
[1718918920105,0.00086,65285.0,65284.0,0.74344226]
[1718918922594,0.00086,65285.0,65284.0,0.6767706]
[1718918922770,0.00086,65285.0,65284.0,0.6657706]
[1718918923176,0.00086,65285.0,65284.0,0.6767706]
[1718918926112,0.00086,65285.0,65284.0,0.7513706]
[1718918926516,0.00086,65285.0,65284.0,0.7403706]
[1718918926737,0.00086,65285.0,65284.0,0.85570226]
[1718918927344,0.00086,65285.0,65284.0,0.86970226]
[1718918927548,0.00086,65285.0,65284.0,0.84470226]
[1718918928090,0.00086,65285.0,65284.0,0.85870226]
[1718918928914,0.00086,65285.0,65284.0,0.86870226]
[1718918929317,0.00086,65285.0,65284.0,1.05670226]
[1718918929519,0.00086,65285.0,65284.0,1.06070226]
[1718918929736,0.00086,65285.0,65284.0,1.07070226]
[1718918930080,0.00086,65285.0,65284.0,1.05670226]
[1718918930244,0.00086,65285.0,65284.0,1.07070226]
[1718918932194,0.00086,65285.0,65284.0,1.06070226]
[1718918932396,0.00086,65285.0,65284.0,1.05870226]
[1718918932725,0.00086,65285.0,65284.0,1.06070226]
[1718918932929,0.00086,65285.0,65284.0,1.04670226]
[1718918933135,0.00086,65285.0,65284.0,1.05970226]
[1718918933350,0.00086,65285.0,65284.0,1.07370226]
[1718918937447,0.00086,65285.0,65284.0,1.06070226]
[1718918937649,0.00086,65285.0,65284.0,1.04670226]
[1718918937887,0.00086,65285.0,65284.0,1.06070226]
[1718918939057,0.00086,65285.0,65284.0,1.07470226]
[1718918939460,0.00086,65285.0,65284.0,1.06070226]
[1718918939773,0.00086,65285.0,65284.0,1.07470226]
[1718918940143,0.00086,65285.0,65284.0,1.06070226]
[1718918940585,0.00086,65285.0,65284.0,1.07470226]
[1718918941868,0.00086,65285.0,65284.0,1.00010226]
[1718918942067,0.00086,65285.0,65284.0,1.07470226]
[1718918945671,0.00086,65285.0,65284.0,0.87270226]
[1718918945873,0.00086,65285.0,65284.0,0.79810226]
[1718918946067,0.00086,65285.0,65284.0,0.87270226]
[1718918947044,0.00086,65285.0,65284.0,0.87364826]
[1718918948186,0.00086,65285.0,65284.0,0.7693166]
[1718918948389,0.00086,65285.0,65284.0,0.5266166]
[1718918948758,0.00086,65285.0,65284.0,0.6922166]
[1718918949784,0.00086,65285.0,65284.0,0.6822166]
[1718918949989,0.00086,65285.0,65284.0,0.7568166]
[1718918950162,0.00086,65285.0,65284.0,0.7668166]
[1718918950367,0.00086,65285.0,65284.0,0.6970166]
[1718918951183,0.00086,65285.0,65284.0,0.72660442]
[1718918951386,0.01041091,65285.0,65284.0,0.72660442]
[1718918952964,0.01041091,65285.0,65284.0,0.6970166]
[1718918955655,0.00086,65285.0,65284.0,0.6970166]
[1718918955811,0.01041091,65285.0,65284.0,0.6970166]
[1718918958241,0.01041091,65285.0,65284.0,0.5366166]
[1718918958776,0.00086,65285.0,65284.0,0.5366166]
[1718918958945,0.01041129,65285.0,65284.0,0.5366166]
[1718918959354,0.01041129,65285.0,65284.0,0.5226166]
[1718918959553,0.01041129,65285.0,65284.0,0.5266166]
[1718918959949,0.01041129,65285.0,65284.0,0.5126166]
[1718918960147,0.01041129,65285.0,65284.0,0.5266166]
[1718918960346,0.01041129,65285.0,65284.0,0.5166166]
[1718918961842,0.01041129,65285.0,65284.0,0.5266166]
[1718918962050,0.01041134,65285.0,65284.0,0.5266166]
[1718918962251,0.01041134,65285.0,65284.0,0.68715286]
[1718918963075,0.01041134,65285.0,65284.0,0.6012166]
[1718918963278,0.01041134,65285.0,65284.0,0.5266166]
[1718918965025,0.00086,65285.0,65284.0,0.5266166]
[1718918965664,0.01041084,65285.0,65284.0,0.5266166]
[1718918968223,0.01041084,65285.0,65284.0,0.6791166]
[1718918968420,0.01041084,65285.0,65284.0,0.70931178]
[1718918971456,0.00086,65285.0,65284.0,0.70931178]
[1718918971655,0.01041074,65285.0,65284.0,0.70931178]
[1718918974745,0.01041071,65285.0,65284.0,0.70931178]
[1718918975492,0.00862,65293.0,65292.0,0.39590948]
[1718918975716,0.00862,65293.0,65292.0,0.7330706]
[1718918976678,0.00962,65293.0,65292.0,0.7330706]
[1718918977079,0.00962,65293.0,65292.0,0.7470706]
[1718918977454,0.00962,65293.0,65292.0,0.7330706]
[1718918977656,0.00962,65293.0,65292.0,0.82037766]
[1718918978081,0.00862,65293.0,65292.0,0.82037766]
[1718918978310,0.00862,65293.0,65292.0,0.82737766]
[1718918978916,0.00862,65293.0,65292.0,0.82037766]
[1718918979254,0.00862,65293.0,65292.0,0.5206706]
[1718918979374,0.00862,65293.0,65292.0,0.5306706]
[1718918983104,0.66622572,65300.0,65299.0,0.24510948]
[1718918983355,0.66622572,65300.0,65299.0,0.42218155]
[1718918984332,0.66622572,65300.0,65299.0,0.43418155]
[1718918985583,0.67577515,65300.0,65299.0,0.43418155]
[1718918986199,0.66622572,65300.0,65299.0,0.43418155]
[1718918986399,0.70946803,65300.0,65299.0,0.43418155]
[1718918987994,0.70946803,65300.0,65299.0,0.4096706]
[1718918991197,0.71901744,65300.0,65299.0,0.4096706]
[1718918997182,0.71901752,65300.0,65299.0,0.4096706]
[1718919000214,0.71901747,65300.0,65299.0,0.4096706]
[1718919006578,0.70946803,65300.0,65299.0,0.4096706]
[1718919006705,0.71901746,65300.0,65299.0,0.4096706]
[1718919007087,0.71901746,65300.0,65299.0,0.29021034]
[1718919007814,0.71901746,65300.0,65299.0,0.3096706]
[1718919008264,0.73031746,65300.0,65299.0,0.3096706]
[1718919009687,0.72076803,65300.0,65299.0,0.3096706]
[1718919009881,0.73031825,65300.0,65299.0,0.3096706]
[1718919010102,0.73031825,65300.0,65299.0,0.3106166]
[1718919010490,0.73117825,65300.0,65299.0,0.3106166]
[1718919015843,0.73099394,65300.0,65299.0,0.3106166]
[1718919019102,0.73099394,65300.0,65299.0,0.012946]
[1718919019258,0.72144372,65300.0,65299.0,0.13859522]
[1718919019459,0.73099422,65300.0,65299.0,0.13859522]
[1718919019658,0.71969422,65300.0,65299.0,0.3106166]
[1718919020492,0.72069422,65300.0,65299.0,0.3116166]
[1718919020734,0.72069422,65300.0,65299.0,0.2996166]
[1718919021063,0.72069422,65300.0,65299.0,0.2986166]
[1718919021266,0.72169422,65300.0,65299.0,0.2996166]
[1718919022349,0.71214372,65300.0,65299.0,0.2996166]
[1718919022551,0.72169366,65300.0,65299.0,0.2996166]
[1718919023185,0.73299366,65300.0,65299.0,0.28015634]
[1718919023488,0.72069366,65300.0,65299.0,0.27915634]
[1718919023929,0.72069366,65300.0,65299.0,0.28015634]
[1718919024247,0.71969366,65300.0,65299.0,0.27915634]
[1718919024450,0.71969366,65300.0,65299.0,0.28015634]
[1718919024705,0.72069366,65300.0,65299.0,0.28015634]
[1718919025485,0.72069366,65300.0,65299.0,0.28415634]
[1718919028027,0.72069366,65300.0,65299.0,0.3036166]
[1718919029551,0.72069366,65300.0,65299.0,0.4036166]
[1718919034951,0.72069366,65300.0,65299.0,0.46057826]
[1718919035132,0.72069366,65300.0,65299.0,0.61197826]
[1718919035332,0.72069366,65300.0,65299.0,0.5550166]
[1718919037582,0.72069366,65300.0,65299.0,0.5650166]
[1718919038429,0.71114372,65300.0,65299.0,0.5650166]
[1718919038630,0.72518123,65300.0,65299.0,0.5650166]
[1718919038833,0.72518123,65300.0,65299.0,0.62897826]
[1718919040046,0.72418123,65300.0,65299.0,0.62797826]
[1718919040254,0.72418123,65300.0,65299.0,0.5670166]
[1718919040473,0.68093892,65300.0,65299.0,0.6570166]
[1718919040670,0.68093892,65300.0,65299.0,0.6540166]
[1718919041320,0.68093892,65300.0,65299.0,0.6680166]
[1718919041454,0.66690141,65300.0,65299.0,0.6540166]
[1718919041653,0.67741468,65300.0,65299.0,0.6540166]
[1718919041894,0.67741468,65300.0,65299.0,0.6680166]
[1718919042866,0.67741468,65300.0,65299.0,0.6640166]
[1718919043066,0.67741468,65300.0,65299.0,0.6780166]
[1718919043269,0.67741468,65300.0,65299.0,0.6830166]
[1718919043696,0.67741468,65300.0,65299.0,0.6780166]
[1718919043855,0.67741468,65300.0,65299.0,0.6820166]
[1718919044466,0.67741468,65300.0,65299.0,0.6540166]
[1718919044779,0.67741468,65300.0,65299.0,0.6680166]
[1718919045729,0.67741468,65300.0,65299.0,0.74581826]
[1718919047324,0.67741468,65300.0,65299.0,0.73581826]
[1718919047937,0.67724613,65300.0,65299.0,0.74581826]
[1718919048329,0.67724613,65300.0,65299.0,0.6780166]
[1718919050165,0.66690141,65300.0,65299.0,0.6780166]
[1718919050368,0.67723929,65300.0,65299.0,0.6780166]
[1718919051168,0.67721791,65300.0,65299.0,0.6780166]
[1718919054426,0.68479367,65300.0,65299.0,0.6780166]
[1718919057707,0.68465093,65300.0,65299.0,0.6780166]
[1718919060695,0.66690141,65300.0,65299.0,0.6780166]
[1718919060851,0.68430469,65300.0,65299.0,0.6780166]
[1718919063351,0.68430469,65300.0,65299.0,0.6680166]
[1718919063510,0.68430469,65300.0,65299.0,0.5166166]
[1718919063916,0.68378352,65300.0,65299.0,0.5166166]
[1718919067136,0.66690141,65300.0,65299.0,0.5166166]
[1718919067403,0.68373256,65300.0,65299.0,0.5166166]
[1718919070247,0.66690141,65300.0,65299.0,0.5166166]
[1718919070579,0.69084546,65300.0,65299.0,0.5166166]
[1718919073455,0.66690141,65300.0,65299.0,0.5166166]
[1718919073694,0.69099709,65300.0,65299.0,0.5166166]
[1718919076697,0.66690141,65300.0,65299.0,0.5166166]
[1718919076924,0.69141012,65300.0,65299.0,0.5166166]
[1718919077455,0.69141012,65300.0,65299.0,0.4166166]
[1718919077652,0.69141012,65300.0,65299.0,0.27150712]
[1718919078110,0.69141012,65300.0,65299.0,0.39715634]
[1718919079318,0.69141012,65300.0,65299.0,0.27150712]
[1718919079695,0.66690141,65300.0,65299.0,0.27150712]
[1718919079896,0.6908131,65300.0,65299.0,0.39715634]
[1718919080926,0.6908131,65300.0,65299.0,0.27150712]
[1718919081992,0.6908131,65300.0,65299.0,0.17150712]
[1718919083050,0.69001594,65300.0,65299.0,0.17150712]
[1718919089296,0.6889956,65300.0,65299.0,0.17150712]
[1718919092587,0.68929888,65300.0,65299.0,0.17150712]
[1718919095654,0.66690141,65300.0,65299.0,0.17150712]
[1718919095860,0.68935431,65300.0,65299.0,0.17150712]
[1718919098986,0.68900732,65300.0,65299.0,0.17150712]
[1718919100486,0.42249344,65300.0,65299.0,0.17150712]
[1718919101606,0.49709344,65300.0,65299.0,0.17150712]
[1718919102031,0.49698235,65300.0,65299.0,0.17150712]
[1718919102836,0.29698235,65300.0,65299.0,0.17150712]
[1718919105354,0.29637854,65300.0,65299.0,0.17150712]
[1718919108490,0.27498753,65300.0,65299.0,0.17150712]
[1718919108833,0.29637324,65300.0,65299.0,0.17150712]
[1718919110379,0.27498753,65300.0,65299.0,0.17150712]
[1718919110592,0.29614503,65300.0,65299.0,0.17150712]
[1718919111909,0.29572735,65300.0,65299.0,0.17150712]
[1718919115012,0.27498753,65300.0,65299.0,0.17150712]
[1718919115199,0.29579972,65300.0,65299.0,0.17150712]
[1718919117624,0.29579972,65300.0,65299.0,0.25470712]
[1718919118210,0.29578657,65300.0,65299.0,0.25470712]
[1718919118397,0.29578657,65300.0,65299.0,0.38035634]
[1718919119084,0.29578657,65300.0,65299.0,0.25470712]
[1718919120837,0.29578657,65300.0,65299.0,0.38035634]
[1718919121239,0.29578657,65300.0,65299.0,0.25470712]
[1718919121438,0.29584209,65300.0,65299.0,0.25470712]
[1718919124707,0.29555349,65300.0,65299.0,0.38035634]
[1718919126579,0.29555349,65300.0,65299.0,0.25470712]
[1718919127738,0.29550036,65300.0,65299.0,0.25470712]
[1718919129067,0.29550036,65300.0,65299.0,0.38035634]
[1718919130894,0.27498753,65300.0,65299.0,0.38035634]
[1718919131125,0.29551438,65300.0,65299.0,0.44675634]
[1718919131456,0.29551438,65300.0,65299.0,0.4662166]
[1718919132268,0.29551438,65300.0,65299.0,0.44675634]
[1718919133237,0.29551438,65300.0,65299.0,0.32110712]
[1718919134016,0.27498753,65300.0,65299.0,0.32110712]
[1718919134221,0.29550775,65300.0,65299.0,0.32110712]
[1718919135365,0.29550775,65300.0,65299.0,0.25470712]
[1718919137272,0.29557799,65300.0,65299.0,0.25470712]
[1718919138916,0.29557799,65300.0,65299.0,0.25070712]
[1718919139443,0.29657799,65300.0,65299.0,0.25170712]
[1718919139781,0.29557799,65300.0,65299.0,0.25070712]
[1718919140239,0.29557799,65300.0,65299.0,0.25170712]
[1718919140240,0.29657799,65300.0,65299.0,0.25170712]
[1718919140438,0.29655719,65300.0,65299.0,0.25170712]
[1718919143637,0.29656224,65300.0,65299.0,0.25170712]
[1718919146685,0.27598753,65300.0,65299.0,0.25170712]
[1718919146868,0.29656653,65300.0,65299.0,0.25170712]
[1718919149825,0.27598753,65300.0,65299.0,0.25170712]
[1718919150039,0.29660353,65300.0,65299.0,0.25170712]
[1718919151447,0.29660353,65300.0,65299.0,0.23770712]
[1718919152096,0.29660353,65300.0,65299.0,0.24170712]
[1718919153078,0.27598753,65300.0,65299.0,0.24170712]
[1718919153445,0.29659232,65300.0,65299.0,0.24170712]
[1718919153902,0.30330865,65300.0,65299.0,0.24170712]
[1718919156431,0.30320738,65300.0,65299.0,0.24170712]
[1718919156661,0.28270386,65300.0,65299.0,0.24170712]
[1718919156836,0.30320811,65300.0,65299.0,0.24170712]
[1718919157207,0.28270386,65300.0,65299.0,0.24170712]
[1718919157373,0.30330336,65300.0,65299.0,0.24170712]
[1718919159559,0.28270386,65300.0,65299.0,0.24170712]
[1718919159771,0.30329204,65300.0,65299.0,0.24170712]
[1718919163944,0.22869204,65300.0,65299.0,0.24170712]
[1718919164144,0.0746,65300.0,65299.0,0.24170712]
[1718919168790,0.0746,65300.0,65299.0,0.005946]
[1718919168997,0.0746,65300.0,65299.0,0.00128592]
[1718919169194,0.0746,65300.0,65289.0,0.0828]
[1718919169403,0.0746,65290.0,65289.0,0.20844922]
[1718919169834,0.0746,65290.0,65289.0,0.22790948]
[1718919170041,0.0746,65290.0,65289.0,0.20844922]
[1718919170425,0.0746,65290.0,65289.0,0.006]
[1718919170626,0.0746,65290.0,65289.0,0.02]
[1718919171561,0.0746,65290.0,65289.0,0.014]
[1718919172165,0.0746,65290.0,65288.0,0.12564922]
[1718919172369,0.0746,65290.0,65289.0,0.009]
[1718919172985,0.0746,65290.0,65289.0,0.023]
[1718919173535,0.0746,65290.0,65289.0,0.009]
[1718919173888,0.0746,65290.0,65289.0,0.02]
[1718919174098,0.10007206,65290.0,65289.0,0.02]
[1718919176052,0.10008025,65290.0,65289.0,0.02]
[1718919176642,0.10008025,65290.0,65289.0,0.1584]
[1718919176818,0.10008025,65290.0,65289.0,0.0982]
[1718919177019,0.10008025,65290.0,65289.0,0.02]
[1718919177526,0.10008025,65290.0,65289.0,0.1584]
[1718919178096,0.10008025,65290.0,65289.0,0.02]
[1718919181081,0.80008025,65290.0,65289.0,0.02]
[1718919181441,0.8394023,65290.0,65289.0,0.02]
[1718919182501,0.83836202,65290.0,65289.0,0.02]
[1718919185469,0.81392205,65290.0,65289.0,0.02]
[1718919185655,0.81392205,65290.0,65284.0,0.000946]
[1718919185656,0.83802055,65290.0,65284.0,0.000946]
[1718919185858,0.0746,65285.0,65279.0,0.000946]
[1718919186063,0.73932205,65290.0,65279.0,0.000946]
[1718919186064,0.0746,65281.0,65279.0,0.000946]
[1718919186452,0.0240985,65280.0,65279.0,0.000946]
[1718919187030,0.7240985,65280.0,65279.0,0.014946]
[1718919187767,0.7240985,65280.0,65279.0,0.028946]
[1718919187972,0.7240985,65280.0,65279.0,0.014]
[1718919187973,0.80406835,65280.0,65279.0,0.014]
[1718919188132,1.03235898,65280.0,65279.0,0.014]
[1718919188296,1.06937313,65280.0,65279.0,0.000742]
[1718919188491,1.0747179,65280.0,65279.0,0.000742]
[1718919188702,1.3016298,65280.0,65279.0,0.000742]
[1718919189240,1.3026298,65280.0,65279.0,0.005742]
[1718919189444,1.3256298,65280.0,65279.0,0.005742]
[1718919189650,0.07435078,65278.0,65271.0,0.000946]
[1718919189848,0.0746,65272.0,65271.0,0.000946]
[1718919190101,0.10174327,65272.0,65264.0,0.27004922]
[1718919190262,0.0746,65265.0,65264.0,0.27004922]
[1718919190640,0.10174327,65265.0,65264.0,0.27004922]
[1718919190959,0.80174327,65265.0,65264.0,0.27004922]
[1718919191708,0.87827917,65265.0,65257.0,0.12564922]
[1718919191933,0.0746,65258.0,65257.0,0.12564922]
[1718919192297,0.0746,65258.0,65256.0,0.075]
[1718919192298,0.10156625,65258.0,65256.0,0.075]
[1718919192521,0.02696625,65257.0,65256.0,0.20064922]
[1718919193973,0.02896625,65257.0,65256.0,0.20064922]
[1718919194804,0.72896625,65257.0,65256.0,0.20064922]
[1718919195132,0.72935214,65257.0,65256.0,0.20064922]
[1718919195576,0.80932199,65257.0,65256.0,0.075]
[1718919195750,0.88392199,65257.0,65256.0,0.075]
[1718919195951,0.72935214,65257.0,65256.0,0.075]
[1718919196162,0.80395214,65257.0,65256.0,0.075]
[1718919196523,0.80295214,65257.0,65256.0,0.075]
[1718919197125,0.80395214,65257.0,65256.0,0.076]
[1718919198051,0.80429799,65257.0,65256.0,0.076]
[1718919201100,0.7766,65257.0,65256.0,0.076]
[1718919201261,0.80322672,65257.0,65256.0,0.001946]
[1718919202638,0.80222672,65257.0,65256.0,0.001946]
[1718919202839,0.80122672,65257.0,65256.0,0.000946]
[1718919203572,0.88157939,65257.0,65256.0,0.000946]
[1718919204212,0.85495267,65257.0,65256.0,0.000946]
[1718919204410,0.88008444,65257.0,65256.0,0.000946]
[1718919206000,0.91829805,65257.0,65256.0,0.000946]
[1718919207396,0.89316628,65257.0,65256.0,0.000946]
[1718919207590,0.91883026,65257.0,65256.0,0.000946]
[1718919207795,0.91883026,65257.0,65253.0,0.000946]
[1718919208031,0.0746,65254.0,65253.0,0.000946]
[1718919208360,0.10026398,65254.0,65253.0,0.000946]
[1718919208513,0.80026398,65254.0,65253.0,0.000946]
[1718919209829,0.80026398,65254.0,65253.0,0.001946]
[1718919210481,0.80126398,65254.0,65253.0,0.001946]
[1718919210689,0.7756,65254.0,65253.0,0.001946]
[1718919210833,0.80131021,65254.0,65253.0,0.001946]
[1718919211031,0.80131021,65254.0,65253.0,0.12759522]
[1718919213980,0.80128558,65254.0,65253.0,0.12759522]
[1718919214194,0.80128558,65254.0,65253.0,0.20599522]
[1718919214813,0.80128558,65254.0,65253.0,0.080346]
[1718919216516,0.80128558,65254.0,65253.0,0.20599522]
[1718919217236,0.7756,65254.0,65253.0,0.20599522]
[1718919217440,0.8012321,65254.0,65253.0,0.20599522]
[1718919217604,0.8012321,65254.0,65253.0,0.080346]
[1718919219417,0.8012321,65254.0,65253.0,0.148146]
[1718919220395,0.80097268,65254.0,65253.0,0.148146]
[1718919223629,0.80090235,65254.0,65253.0,0.148146]
[1718919226247,0.80090235,65254.0,65253.0,0.27379522]
[1718919226427,0.80090235,65254.0,65253.0,0.148146]
[1718919226667,0.79824579,65254.0,65253.0,0.148146]
[1718919228835,0.79824579,65254.0,65253.0,0.14833778]
[1718919229911,0.79766287,65254.0,65253.0,0.14833778]
[1718919233221,0.7756,65254.0,65253.0,0.14833778]
[1718919233399,0.79735528,65254.0,65253.0,0.14833778]
[1718919236453,0.7756,65254.0,65253.0,0.14833778]
[1718919236790,0.79736896,65254.0,65253.0,0.14833778]
[1718919237502,0.79736896,65254.0,65251.0,0.0795]
[1718919237706,0.0746,65252.0,65251.0,0.0795]
[1718919237939,0.79636896,65252.0,65251.0,0.0795]
[1718919239590,0.79522319,65252.0,65251.0,0.0795]
[1718919240655,0.79622319,65252.0,65251.0,0.0795]
[1718919241447,0.72162319,65252.0,65251.0,0.0795]
[1718919241650,0.79622319,65252.0,65251.0,0.0795]
[1718919242227,0.79622319,65252.0,65250.0,0.0663]
[1718919242472,0.01962319,65251.0,65248.0,0.0815]
[1718919242682,0.0746,65249.0,65248.0,0.0815]
[1718919242880,0.09400405,65249.0,65248.0,0.0815]
[1718919243737,0.79400405,65249.0,65248.0,0.0815]
[1718919244085,0.79500405,65249.0,65248.0,0.0815]
[1718919244895,0.79600405,65249.0,65248.0,0.0815]
[1718919245726,0.79658267,65249.0,65248.0,0.0815]
[1718919248864,0.7766,65249.0,65248.0,0.0815]
[1718919249187,0.79648584,65249.0,65248.0,0.0815]
[1718919249752,0.79648584,65249.0,65248.0,0.0815]
[1718919250575,0.79648584,65249.0,65245.0,0.12564922]
[1718919250778,0.0746,65246.0,65244.0,0.18904922]
[1718919250973,0.71988584,65245.0,65244.0,0.18904922]
[1718919252208,0.7,65245.0,65244.0,0.18904922]
[1718919252293,0.71896663,65245.0,65244.0,0.18904922]
[1718919253742,0.71896663,65245.0,65244.0,0.27214922]
[1718919253921,0.79456663,65245.0,65244.0,0.27214922]
[1718919254319,0.79456663,65245.0,65244.0,0.20874922]
[1718919255436,0.79443902,65245.0,65244.0,0.20874922]
[1718919256578,0.87753903,65245.0,65244.0,0.12564922]
[1718919256980,0.87753903,65245.0,65228.0,0.000946]
[1718919256981,0.1,65242.0,65228.0,0.000946]
[1718919257154,0.0746,65234.0,65219.0,0.1]
[1718919257353,0.1,65239.0,65219.0,0.1]
[1718919257354,0.30153702,65233.0,65219.0,0.1]
[1718919257583,0.0746,65220.0,65219.0,0.15256112]
[1718919257798,0.09343902,65220.0,65217.0,0.0651]
[1718919258038,0.01883902,65219.0,65218.0,0.15256112]
[1718919258251,0.0746,65220.0,65217.0,0.0651]
[1718919258448,0.02287746,65219.0,65217.0,0.0651]
[1718919258736,0.02287746,65218.0,65217.0,0.0651]
[1718919259065,0.14201611,65218.0,65217.0,0.0651]
[1718919259263,0.20383365,65218.0,65213.0,0.00948199]
[1718919259470,0.0746,65214.0,65213.0,0.08576371]
[1718919259660,0.14201611,65214.0,65213.0,0.08576371]
[1718919260007,0.11503204,65214.0,65213.0,0.23087319]
[1718919260217,0.18963204,65214.0,65213.0,0.23087319]
[1718919260432,0.18963204,65214.0,65213.0,0.21141293]
[1718919260633,0.11503204,65214.0,65213.0,0.48343431]
[1718919260759,0.18963204,65214.0,65213.0,0.54703431]
[1718919261407,0.19774793,65214.0,65213.0,0.54703431]
[1718919261980,0.12536814,65214.0,65213.0,0.22564311]
[1718919262183,0.12536814,65214.0,65213.0,0.00948199]
[1718919262410,0.075532,65214.0,65213.0,0.00948199]
[1718919262627,0.150132,65214.0,65213.0,0.00948199]
[1718919263056,0.075532,65214.0,65213.0,0.00948199]
[1718919263274,0.075532,65214.0,65213.0,0.00944148]
[1718919263406,0.150132,65214.0,65213.0,0.00944148]
[1718919264283,0.850132,65214.0,65213.0,0.00944148]
[1718919264567,0.89774793,65214.0,65213.0,0.00944148]
[1718919264700,0.89401104,65214.0,65213.0,0.00944148]
[1718919265461,0.81941104,65214.0,65213.0,0.00944148]
[1718919265723,0.89401104,65214.0,65213.0,0.00944148]
[1718919266635,0.89487104,65214.0,65213.0,0.00944148]
[1718919267847,0.89515864,65214.0,65213.0,0.00944148]
[1718919268752,0.9869245,65214.0,65199.0,0.066]
[1718919268947,0.0746,65200.0,65198.0,0.087493]
[1718919269126,0.12194864,65199.0,65198.0,0.009493]
[1718919270585,0.82194864,65199.0,65198.0,0.009493]
[1718919270818,0.6423027,65199.0,65198.0,0.009493]
[1718919271324,0.6473027,65199.0,65198.0,0.009493]
[1718919271522,0.12131012,65199.0,65198.0,0.009493]
[1718919273751,0.12831012,65199.0,65198.0,0.009493]
[1718919274027,0.09853753,65199.0,65198.0,0.009493]
[1718919274212,0.12284673,65199.0,65198.0,0.009493]
[1718919274949,0.1425914,65199.0,65198.0,0.009493]
[1718919276107,0.12284673,65199.0,65198.0,0.009493]
[1718919276331,0.19744673,65199.0,65198.0,0.009493]
[1718919277116,0.19816266,65199.0,65198.0,0.009493]
[1718919280315,0.1981613,65199.0,65198.0,0.009493]
[1718919280936,0.1235613,65199.0,65198.0,0.009493]
[1718919281150,0.1981613,65199.0,65198.0,0.009493]
[1718919282906,0.15451336,65199.0,65198.0,0.009493]
[1718919284976,0.11162377,65199.0,65198.0,0.009493]